[Event "XXXIX Benasque Open 2019"]
[Site "Benasque"]
[Date "2019.07.09"]
[Round "6.1"]
[White "Indjic, Aleksandar"]
[Black "Ter-Sahakyan, Samvel"]
[Result "1-0"]
[ECO "A28"]
[WhiteElo "2604"]
[BlackElo "2625"]
[Annotator "RC"]
[PlyCount "85"]
[EventDate "2019.07.04"]
[EventType "swiss"]
[EventCountry "ESP"]
[SourceTitle "playchess.com"]
[Source "ChessBase"]
[SourceQuality "1"]
[TimeControl "5400+30"]

1. c4 {[%emt 0:03:42]} e5 {[%emt 0:00:00]} 2. Nc3 {[%emt 0:00:22]} Nf6 {[%emt 0:00:03]} 3. Nf3 {[%emt 0:00:40]} Nc6 {[%emt 0:00:07]} 4. e4 {[%emt 0:01:18]} Bb4 {[%emt 0:02:18]} 5. d3 {[%emt 0:02:11]} d6 {[%emt 0:00:07]} 6. a3 {[%emt 0:00:16]} Bc5 {[%emt 0:00:06]} 7. b4 {[%emt 0:01:34]} Bb6 {[%emt 0:00:18]} 8. Na4 {[%emt 0:00:13]} Bg4 {[%emt 0:06:41]} 9. Nxb6 {[%emt 0:01:10]} axb6 {[%emt 0:00:06]} 10. Bb2 {[%emt 0:00:47]} O-O {[%emt 0:14:43]} 11. Be2 {[%emt 0:06:20]} Re8 {[%emt 0:00:16]} 12. O-O {[%emt 0:02:52]} Nd7 {[%emt 0:00:32]} 13. Nd4 {[%emt 0:10:55]} Nxd4 {[%emt 0:01:54]} 14. Bxg4 {[%emt 0:00:34]} Nf6 {[%emt 0:00:57]} 15. Bh3 {[%emt 0:00:55]} c5 {[%emt 0:05:05]} 16. Bxd4 {[%emt 0:04:56]} cxd4 {[%emt 0:01:58]} 17. g3 {[%emt 0:00:39]} h5 {[%emt 0:05:26]} 18. a4 {[%emt 0:02:27]} h4 {[%emt 0:05:56]} 19. f4 {[%emt 0:03:55]} Qe7 {[%emt 0:09:24]} 20. Rf2 {[%emt 0:13:15]} hxg3 {[%emt 0:04:30]} 21. hxg3 {[%emt 0:00:08]} Ra7 {[%emt 0:00:04]} 22. Kg2 {[%emt 0:08:23]} Rea8 {[%emt 0:01:32]} 23. Qb3 {[%emt 0:01:14]} Qe8 {[%emt 0:03:20]} 24. b5 {[%emt 0:06:24]} Qe7 {[%emt 0:00:39]} 25. Qb4 {[%emt 0:01:16]} Qc7 {[%emt 0:00:43]} 26. Bf5 {[%emt 0:00:58]} Qc5 {[%emt 0:05:18]} 27. Qb3 {[%emt 0:04:16]} Kf8 {[%emt 0:03:14]} 28. Bh3 {[%emt 0:00:10]} Ke7 {[%emt 0:00:41]} 29. Qd1 {[%emt 0:00:51]} Rh8 {[%emt 0:04:51]} 30. fxe5 {[%emt 0:01:11]} dxe5 {[%emt 0:02:17]} 31. Qd2 {[%emt 0:00:09]} Raa8 {[%emt 0:08:47]} 32. a5 {[%emt 0:00:24]} bxa5 {[%emt 0:07:11]} 33. Rxa5 {[%emt 0:00:07]} Rxa5 {[%emt 0:01:50]} 34. Qxa5 {[%emt 0:00:47]} Nh7 {[%emt 0:00:31]} 35. Ra2 {[%emt 0:01:27]} Ng5 {[%emt 0:00:09]} 36. Bg4 {[%emt 0:00:09]} Kd6 {[%emt 0:02:23]} 37. Qd2 {[%emt 0:01:07]} f6 {[%emt 0:00:57]} 38. Ra5 {[%emt 0:00:12]} Kc7 {[%emt 0:01:04]} 39. Qa2 {[%emt 0:03:30]} Qb4 {[%emt 0:01:21]} 40. b6+ {[%emt 0:04:22]} Qxb6 {[%emt 0:00:08]} 41. Qa3 {[%emt 0:00:37]} Rd8 {[%emt 0:01:51]} 42. Rb5 {[%emt 0:01:37]} Qd6 {[%emt 0:00:08]} 43. Rc5+ {[%emt 0:00:28]} 1-0

[Event "XXXIX Benasque Open 2019"]
[Site "Benasque"]
[Date "2019.07.09"]
[Round "6.3"]
[White "Bartel, Mateusz"]
[Black "Admiraal, Miguoel"]
[Result "1/2-1/2"]
[ECO "B12"]
[WhiteElo "2600"]
[BlackElo "2504"]
[Annotator "RC"]
[PlyCount "47"]
[EventDate "2019.07.04"]
[EventType "swiss"]
[EventCountry "ESP"]
[SourceTitle "playchess.com"]
[Source "ChessBase"]
[SourceQuality "1"]
[TimeControl "5400+30"]

1. e4 {[%emt 0:00:00]} c6 {[%emt 0:00:10]} 2. d4 {[%emt 0:00:00]} d5 {[%emt 0:00:05]} 3. e5 {[%emt 0:00:00]} Bf5 {[%emt 0:01:11]} 4. Nf3 {[%emt 0:00:00]} e6 {[%emt 0:00:15]} 5. Be2 {[%emt 0:00:00]} c5 {[%emt 0:02:30]} 6. Be3 {[%emt 0:00:43]} Qb6 {[%emt 0:00:26]} 7. Nc3 {[%emt 0:00:06]} Nc6 {[%emt 0:00:07]} 8. Na4 {[%emt 0:00:16]} Qa5+ {[%emt 0:00:04]} 9. c3 {[%emt 0:00:07]} c4 {[%emt 0:00:04]} 10. Nh4 {[%emt 0:00:17]} b5 {[%emt 0:04:13]} 11. Nxf5 {[%emt 0:05:04]} exf5 {[%emt 0:05:06]} 12. Nc5 {[%emt 0:00:05]} Bxc5 {[%emt 0:00:04]} 13. dxc5 {[%emt 0:00:10]} Nge7 {[%emt 0:00:23]} 14. O-O {[%emt 0:15:43]} b4 {[%emt 0:00:51]} 15. Qc2 {[%emt 0:12:50]} O-O {[%emt 0:05:56]} 16. f4 {[%emt 0:10:07]} Rab8 {[%emt 0:07:17]} 17. Bf3 {[%emt 0:03:31]} bxc3 {[%emt 0:21:24]} 18. Qxc3 {[%emt 0:05:35]} Qb5 {[%emt 0:03:28]} 19. Rf2 {[%emt 0:04:09]} Rfd8 {[%emt 0:04:04]} 20. Rd2 {[%emt 0:08:22]} h6 {[%emt 0:18:01]} 21. Rad1 {[%emt 0:09:04]} Qa4 {[%emt 0:01:52]} 22. Ra1 {[%emt 0:00:39]} Qb5 {[%emt 0:00:09]} 23. Rad1 {[%emt 0:05:12]} Qa4 {[%emt 0:00:10]} 24. Ra1 {[%emt 0:00:28]} 1/2-1/2

[Event "XXXIX Benasque Open 2019"]
[Site "Benasque"]
[Date "2019.07.09"]
[Round "6.4"]
[White "Ubilava, Elizbar"]
[Black "Vazquez Igarza, Renier"]
[Result "1/2-1/2"]
[ECO "A33"]
[WhiteElo "2481"]
[BlackElo "2558"]
[Annotator "ChessBase"]
[PlyCount "67"]
[EventDate "2019.07.04"]
[EventType "swiss"]
[EventCountry "ESP"]
[SourceTitle "playchess.com"]
[Source "ChessBase"]
[SourceQuality "1"]
[TimeControl "5400+30"]

1. c4 {[%emt 0:00:00]} c5 {[%emt 0:01:13]} 2. Nf3 {[%emt 0:00:14]} Nc6 {[%emt 0:00:15]} 3. d4 {[%emt 0:01:16]} cxd4 {[%emt 0:00:33]} 4. Nxd4 {[%emt 0:00:07]} Nf6 {[%emt 0:00:36]} 5. Nc3 {[%emt 0:00:32]} e6 {[%emt 0:01:01]} 6. e4 {[%emt 0:02:38]} Bb4 {[%emt 0:00:55]} 7. Nxc6 {[%emt 0:00:42]} bxc6 {[%emt 0:00:08]} 8. Bd3 {[%emt 0:00:38]} e5 {[%emt 0:00:35]} 9. O-O {[%emt 0:00:48]} d6 {[%emt 0:01:02]} 10. Na4 {[%emt 0:05:34]} O-O {[%emt 0:05:46]} 11. Bg5 {[%emt 0:06:47]} h6 {[%emt 0:00:13]} 12. Bh4 {[%emt 0:00:09]} Re8 {[%emt 0:02:00]} 13. Rc1 {[%emt 0:04:42]} Rb8 {[%emt 0:05:51]} 14. f3 {[%emt 0:08:27]} Be6 {[%emt 0:06:15]} 15. a3 {[%emt 0:06:16]} Ba5 {[%emt 0:00:57]} 16. b4 {[%emt 0:01:04]} Bc7 {[%emt 0:00:08]} 17. Re1 {[%emt 0:01:26]} Qe7 {[%emt 0:05:33]} 18. Bf2 {[%emt 0:03:27]} Ra8 {[%emt 0:03:53]} 19. Qc2 {[%emt 0:01:05]} Nh5 {[%emt 0:02:35]} 20. g3 {[%emt 0:02:22]} Nf6 {[%emt 0:04:31]} 21. Bf1 {[%emt 0:03:24]} Nh7 {[%emt 0:02:33]} 22. Bg2 {[%emt 0:04:00]} Ng5 {[%emt 0:06:04]} 23. Be3 {[%emt 0:00:43]} Bd7 {[%emt 0:03:38]} 24. c5 {[%emt 0:06:33]} Ne6 {[%emt 0:15:05]} 25. cxd6 {[%emt 0:04:51]} Bxd6 {[%emt 0:00:16]} 26. Red1 {[%emt 0:01:41]} Red8 {[%emt 0:02:00]} 27. Rd3 {[%emt 0:04:08]} Be8 {[%emt 0:01:23]} 28. Rcd1 {[%emt 0:01:23]} Bc7 {[%emt 0:02:42]} 29. Rxd8 {[%emt 0:03:50]} Bxd8 {[%emt 0:00:31]} 30. Bf1 {[%emt 0:02:43]} a5 {[%emt 0:01:16]} 31. Nc5 {[%emt 0:01:58]} Bb6 {[%emt 0:01:26]} 32. Qc3 {[%emt 0:01:02]} axb4 {[%emt 0:00:39]} 33. axb4 {[%emt 0:00:07]} Nxc5 {[%emt 0:01:08]} 34. bxc5 1/2-1/2

[Event "XXXIX Benasque Open 2019"]
[Site "Benasque"]
[Date "2019.07.09"]
[Round "6.5"]
[White "Kharitonov, Alexandr"]
[Black "Gascon Del Nogal, Jose Rafael"]
[Result "1/2-1/2"]
[ECO "E68"]
[WhiteElo "2540"]
[BlackElo "2466"]
[Annotator "ChessBase"]
[PlyCount "58"]
[EventDate "2019.07.04"]
[EventType "swiss"]
[EventCountry "ESP"]
[SourceTitle "playchess.com"]
[Source "ChessBase"]
[SourceQuality "1"]
[TimeControl "5400+30"]

1. d4 {[%emt 0:00:39]} Nf6 {[%emt 0:04:56]} 2. c4 {[%emt 0:00:08]} g6 {[%emt 0:00:03]} 3. g3 {[%emt 0:00:42]} Bg7 {[%emt 0:00:15]} 4. Bg2 {[%emt 0:00:06]} O-O {[%emt 0:00:04]} 5. Nf3 {[%emt 0:00:25]} d6 {[%emt 0:00:04]} 6. O-O {[%emt 0:00:15]} Nbd7 {[%emt 0:00:05]} 7. Nc3 {[%emt 0:00:10]} e5 {[%emt 0:00:05]} 8. e4 {[%emt 0:00:18]} exd4 {[%emt 0:00:05]} 9. Nxd4 {[%emt 0:00:04]} Re8 {[%emt 0:00:05]} 10. h3 {[%emt 0:00:34]} a6 {[%emt 0:00:04]} 11. Be3 {[%emt 0:00:50]} Rb8 {[%emt 0:00:24]} 12. b3 {[%emt 0:01:05]} Nc5 {[%emt 0:00:05]} 13. Qc2 {[%emt 0:00:59]} Bd7 {[%emt 0:02:11]} 14. Rad1 {[%emt 0:04:53]} Qc8 {[%emt 0:00:05]} 15. b4 {[%emt 0:06:36]} Ne6 {[%emt 0:01:34]} 16. Nde2 {[%emt 0:00:59]} c5 {[%emt 0:06:37]} 17. bxc5 {[%emt 0:08:14]} Nxc5 {[%emt 0:03:57]} 18. Rxd6 {[%emt 0:00:57]} Be6 {[%emt 0:07:57]} 19. Nd5 {[%emt 0:05:20]} Bxd5 {[%emt 0:01:14]} 20. exd5 {[%emt 0:03:58]} Rxe3 {[%emt 0:08:16]} 21. fxe3 {[%emt 0:00:28]} Nfd7 {[%emt 0:00:16]} 22. Nf4 Be5 {[%emt 0:07:19]} 23. Rxd7 {[%emt 0:06:18]} Qxd7 {[%emt 0:00:08]} 24. Nd3 {[%emt 0:00:06]} Nxd3 {[%emt 0:02:26]} 25. Qxd3 {[%emt 0:00:04]} Qd6 {[%emt 0:01:51]} 26. g4 {[%emt 0:02:55]} b5 {[%emt 0:04:59]} 27. cxb5 {[%emt 0:03:58]} Rxb5 {[%emt 0:00:55]} 28. Rb1 {[%emt 0:02:54]} Ra5 {[%emt 0:06:47]} 29. Qd2 {[%emt 0:02:56]} Rc5 {[%emt 0:10:43]} 1/2-1/2

[Event "XXXIX Benasque Open 2019"]
[Site "Benasque"]
[Date "2019.07.09"]
[Round "6.6"]
[White "Lopez Mulet, Inigo"]
[Black "Dimitrov, Radoslav"]
[Result "1-0"]
[ECO "A40"]
[WhiteElo "2378"]
[BlackElo "2530"]
[Annotator "ChessBase"]
[PlyCount "75"]
[EventDate "2019.07.04"]
[EventType "swiss"]
[EventCountry "ESP"]
[SourceTitle "playchess.com"]
[Source "ChessBase"]
[SourceQuality "1"]
[TimeControl "5400+30"]

1. d4 {[%emt 0:02:31]} g6 {[%emt 0:00:00]} 2. c4 {[%emt 0:00:13]} Bg7 {[%emt 0:00:00]} 3. Nf3 {[%emt 0:00:53]} c5 {[%emt 0:00:00]} 4. d5 {[%emt 0:01:14]} d6 {[%emt 0:00:01]} 5. g3 {[%emt 0:00:46]} e6 {[%emt 0:06:32]} 6. Nc3 {[%emt 0:01:20]} Ne7 {[%emt 0:07:05]} 7. Bg2 {[%emt 0:01:09]} exd5 {[%emt 0:00:23]} 8. cxd5 {[%emt 0:00:08]} O-O {[%emt 0:00:54]} 9. Bf4 {[%emt 0:08:52]} Bg4 {[%emt 0:03:08]} 10. Nd2 {[%emt 0:03:53]} Nc8 {[%emt 0:03:07]} 11. h3 {[%emt 0:13:37]} Bd7 {[%emt 0:00:17]} 12. Nc4 {[%emt 0:01:21]} b5 {[%emt 0:06:18]} 13. Nxd6 {[%emt 0:05:55]} g5 {[%emt 0:07:42]} 14. Nxc8 {[%emt 0:00:56]} gxf4 {[%emt 0:00:06]} 15. Nd6 {[%emt 0:13:40]} fxg3 {[%emt 0:13:28]} 16. fxg3 {[%emt 0:08:15]} Qb6 {[%emt 0:18:07]} 17. Nde4 {[%emt 0:03:16]} f5 {[%emt 0:08:25]} 18. Ng5 {[%emt 0:13:09]} b4 {[%emt 0:02:06]} 19. Na4 {[%emt 0:01:39]} Qg6 {[%emt 0:06:29]} 20. h4 {[%emt 0:00:27]} Bd4 {[%emt 0:00:43]} 21. d6 {[%emt 0:08:01]} Nc6 {[%emt 0:01:05]} 22. Nxc5 {[%emt 0:01:16]} Bxc5 {[%emt 0:10:01]} 23. Qd5+ {[%emt 0:00:13]} Kg7 {[%emt 0:00:01]} 24. Qxc5 {[%emt 0:00:11]} h6 {[%emt 0:00:02]} 25. Bxc6 {[%emt 0:03:29]} Bxc6 {[%emt 0:00:01]} 26. Qxc6 {[%emt 0:00:14]} hxg5 {[%emt 0:00:05]} 27. hxg5 {[%emt 0:01:10]} Rac8 {[%emt 0:03:00]} 28. Qb7+ {[%emt 0:01:17]} Qf7 {[%emt 0:00:02]} 29. d7 {[%emt 0:03:03]} Rcd8 {[%emt 0:02:26]} 30. Rd1 {[%emt 0:00:05]} Qe7 {[%emt 0:00:04]} 31. Qxa7 {[%emt 0:01:26]} Qxg5 {[%emt 0:00:33]} 32. Qd4+ {[%emt 0:00:10]} Rf6 {[%emt 0:01:17]} 33. Qh4 {[%emt 0:01:09]} Qg6 {[%emt 0:01:04]} 34. Rd3 {[%emt 0:01:15]} Kf7 {[%emt 0:01:13]} 35. Qh7+ {[%emt 0:00:35]} Ke6 {[%emt 0:01:05]} 36. Re3+ {[%emt 0:00:21]} Kd5 {[%emt 0:00:31]} 37. Qe7 {[%emt 0:00:15]} Rff8 {[%emt 0:00:36]} 38. Re5+ {[%emt 0:00:27]} 1-0

[Event "XXXIX Benasque Open 2019"]
[Site "Benasque"]
[Date "2019.07.09"]
[Round "6.7"]
[White "Sos Andreu, Eric"]
[Black "Deac, Bogdan-Daniel"]
[Result "0-1"]
[ECO "A37"]
[WhiteElo "2343"]
[BlackElo "2621"]
[Annotator "RC"]
[PlyCount "98"]
[EventDate "2019.07.04"]
[EventType "swiss"]
[EventCountry "ESP"]
[SourceTitle "playchess.com"]
[Source "ChessBase"]
[SourceQuality "1"]
[TimeControl "5400+30"]

1. Nf3 {[%emt 0:00:00]} c5 {[%emt 0:00:54]} 2. c4 {[%emt 0:00:14]} Nc6 {[%emt 0:00:25]} 3. g3 {[%emt 0:01:01]} g6 {[%emt 0:00:21]} 4. Nc3 {[%emt 0:00:52]} Bg7 {[%emt 0:00:08]} 5. Bg2 {[%emt 0:00:10]} d6 {[%emt 0:00:34]} 6. O-O {[%emt 0:00:53]} e6 {[%emt 0:00:08]} 7. e3 {[%emt 0:00:53]} Nge7 {[%emt 0:00:04]} 8. d4 {[%emt 0:00:29]} O-O {[%emt 0:00:04]} 9. Qd3 {[%emt 0:10:26]} b6 {[%emt 0:08:47]} 10. b3 {[%emt 0:01:05]} Ba6 {[%emt 0:00:52]} 11. Bb2 {[%emt 0:12:16]} cxd4 {[%emt 0:08:57]} 12. Nxd4 {[%emt 0:01:50]} d5 {[%emt 0:00:03]} 13. Nxc6 {[%emt 0:02:16]} Nxc6 {[%emt 0:00:03]} 14. Qd2 {[%emt 0:03:51]} Rc8 {[%emt 0:00:17]} 15. cxd5 {[%emt 0:06:08]} Bxf1 {[%emt 0:00:43]} 16. Rxf1 {[%emt 0:00:06]} Ne7 {[%emt 0:00:09]} 17. d6 {[%emt 0:05:37]} Qd7 {[%emt 0:00:30]} 18. Rd1 {[%emt 0:03:02]} Nc6 {[%emt 0:00:24]} 19. Ne4 {[%emt 0:01:37]} f6 {[%emt 0:07:33]} 20. h4 {[%emt 0:00:51]} Nd8 {[%emt 0:00:21]} 21. g4 {[%emt 0:02:55]} f5 {[%emt 0:00:31]} 22. Bxg7 {[%emt 0:00:29]} Qxg7 {[%emt 0:00:06]} 23. d7 {[%emt 0:01:17]} Rc7 {[%emt 0:00:11]} 24. Qd6 {[%emt 0:10:27]} Rc6 {[%emt 0:08:55]} 25. Nf6+ {[%emt 0:02:03]} Qxf6 {[%emt 0:00:08]} 26. Bxc6 {[%emt 0:00:04]} fxg4 {[%emt 0:00:05]} 27. Rd2 {[%emt 0:01:34]} Qxh4 {[%emt 0:00:07]} 28. Bg2 {[%emt 0:00:51]} Qf6 {[%emt 0:00:07]} 29. Qc7 {[%emt 0:06:05]} Qa1+ {[%emt 0:00:31]} 30. Kh2 {[%emt 0:00:46]} Qf6 {[%emt 0:03:03]} 31. Kg1 {[%emt 0:01:32]} Nf7 {[%emt 0:07:20]} 32. Qg3 {[%emt 0:01:25]} h5 {[%emt 0:07:38]} 33. Qc7 {[%emt 0:01:34]} g5 {[%emt 0:03:56]} 34. Qxa7 {[%emt 0:02:26]} Qa1+ {[%emt 0:16:19]} 35. Kh2 {[%emt 0:04:29]} Qe5+ {[%emt 0:19:09]} 36. Kg1 {[%emt 0:00:05]} Qc5 {[%emt 0:00:08]} 37. Rd4 {[%emt 0:03:56]} Nd8 {[%emt 0:01:30]} 38. Qb8 {[%emt 0:01:56]} Qc2 {[%emt 0:02:19]} 39. Qg3 {[%emt 0:01:28]} h4 {[%emt 0:00:24]} 40. Qxg4 {[%emt 0:00:36]} Qxf2+ {[%emt 0:00:08]} 41. Kh2 {[%emt 0:00:04]} Qxe3 {[%emt 0:00:08]} 42. Re4 {[%emt 0:01:24]} Qc5 {[%emt 0:00:07]} 43. Qh5 {[%emt 0:02:44]} Kg7 {[%emt 0:01:07]} 44. b4 {[%emt 0:02:18]} Qd6+ {[%emt 0:04:20]} 45. Kh1 {[%emt 0:00:09]} Rf5 {[%emt 0:01:21]} 46. Qe8 {[%emt 0:01:07]} h3 {[%emt 0:00:58]} 47. Bxh3 {[%emt 0:01:02]} Rf2 {[%emt 0:00:04]} 48. Bg2 {[%emt 0:01:32]} Qg3 {[%emt 0:00:18]} 49. Qe7+ {[%emt 0:00:31]} Nf7 {[%emt 0:00:06]} 0-1

[Event "XXXIX Benasque Open 2019"]
[Site "Benasque"]
[Date "2019.07.09"]
[Round "6.8"]
[White "Hovhannisyan, Robert"]
[Black "Milliet, Sophie"]
[Result "1-0"]
[ECO "B44"]
[WhiteElo "2640"]
[BlackElo "2409"]
[Annotator "RC"]
[PlyCount "63"]
[EventDate "2019.07.04"]
[EventType "swiss"]
[EventCountry "ESP"]
[SourceTitle "playchess.com"]
[Source "ChessBase"]
[SourceQuality "1"]
[TimeControl "5400+30"]

1. e4 {[%emt 0:00:00]} c5 {[%emt 0:02:56]} 2. Nf3 {[%emt 0:00:00]} e6 {[%emt 0:00:07]} 3. d4 {[%emt 0:00:00]} cxd4 {[%emt 0:00:04]} 4. Nxd4 {[%emt 0:00:02]} Nc6 {[%emt 0:00:03]} 5. g3 {[%emt 0:00:37]} d5 {[%emt 0:02:56]} 6. Nc3 {[%emt 0:00:17]} Nf6 {[%emt 0:23:33]} 7. Bg2 {[%emt 0:01:24]} Qb6 {[%emt 0:00:11]} 8. Nb3 {[%emt 0:00:49]} d4 {[%emt 0:00:10]} 9. e5 {[%emt 0:00:40]} dxc3 {[%emt 0:07:17]} 10. exf6 {[%emt 0:00:58]} gxf6 {[%emt 0:00:10]} 11. bxc3 {[%emt 0:07:33]} Qb5 {[%emt 0:02:09]} 12. Be3 {[%emt 0:02:27]} Be7 {[%emt 0:10:23]} 13. Rb1 {[%emt 0:06:29]} Qc4 {[%emt 0:05:18]} 14. Nd2 {[%emt 0:01:37]} Qxc3 {[%emt 0:02:05]} 15. Rb3 {[%emt 0:01:58]} Qa5 {[%emt 0:05:03]} 16. O-O {[%emt 0:00:16]} Qc7 {[%emt 0:04:01]} 17. Ne4 {[%emt 0:07:04]} f5 {[%emt 0:02:24]} 18. Qa1 {[%emt 0:05:49]} e5 {[%emt 0:14:30]} 19. Nc3 {[%emt 0:01:07]} Be6 {[%emt 0:00:14]} 20. Nb5 {[%emt 0:05:08]} Qb8 {[%emt 0:00:23]} 21. Nxa7 {[%emt 0:01:45]} Bxb3 {[%emt 0:14:39]} 22. Nxc6 {[%emt 0:00:15]} Rxa2 {[%emt 0:01:48]} 23. Nxb8 {[%emt 0:01:24]} Rxa1 {[%emt 0:00:04]} 24. Rxa1 {[%emt 0:00:07]} Bxc2 {[%emt 0:00:05]} 25. Rc1 {[%emt 0:00:48]} O-O {[%emt 0:00:14]} 26. Rxc2 {[%emt 0:01:24]} Rxb8 {[%emt 0:00:03]} 27. Rc7 {[%emt 0:00:07]} Bd6 {[%emt 0:01:54]} 28. Rd7 {[%emt 0:00:13]} f4 {[%emt 0:00:33]} 29. Rxd6 {[%emt 0:02:35]} fxe3 {[%emt 0:00:04]} 30. fxe3 {[%emt 0:00:04]} b5 {[%emt 0:00:41]} 31. Bd5 {[%emt 0:00:45]} Kg7 {[%emt 0:00:54]} 32. Rd7 {[%emt 0:00:15]} 1-0

[Event "XXXIX Benasque Open 2019"]
[Site "Benasque"]
[Date "2019.07.09"]
[Round "6.9"]
[White "Banusz, Tamas"]
[Black "Valmana Canto, Jaime"]
[Result "1-0"]
[ECO "E63"]
[WhiteElo "2626"]
[BlackElo "2401"]
[Annotator "RC"]
[PlyCount "90"]
[EventDate "2019.07.04"]
[EventType "swiss"]
[EventCountry "ESP"]
[SourceTitle "playchess.com"]
[Source "ChessBase"]
[SourceQuality "1"]
[TimeControl "5400+30"]

1. Nf3 {[%emt 0:01:01]} Nf6 {[%emt 0:03:12]} 2. g3 {[%emt 0:00:13]} g6 {[%emt 0:00:09]} 3. Bg2 {[%emt 0:00:07]} Bg7 {[%emt 0:00:07]} 4. d4 {[%emt 0:00:30]} O-O {[%emt 0:00:53]} 5. c4 {[%emt 0:00:08]} d6 {[%emt 0:00:34]} 6. Nc3 {[%emt 0:00:15]} Nc6 {[%emt 0:00:46]} 7. O-O {[%emt 0:00:29]} a6 {[%emt 0:00:42]} 8. e3 {[%emt 0:02:07]} Rb8 {[%emt 0:12:28]} 9. Qe2 {[%emt 0:07:26]} b5 10. b3 {[%emt 0:01:38]} bxc4 {[%emt 0:04:56]} 11. bxc4 {[%emt 0:02:23]} Na5 {[%emt 0:11:52]} 12. Ba3 Be6 13. d5 {[%emt 0:04:46]} Bg4 {[%emt 0:01:59]} 14. Rab1 {[%emt 0:07:31]} Nd7 {[%emt 0:04:27]} 15. Rxb8 {[%emt 0:01:11]} Qxb8 {[%emt 0:00:10]} 16. Rb1 {[%emt 0:02:04]} Nb6 {[%emt 0:13:55]} 17. c5 {[%emt 0:02:18]} Nac4 {[%emt 0:00:03]} 18. cxb6 {[%emt 0:02:25]} Nxa3 {[%emt 0:00:08]} 19. Rb3 {[%emt 0:00:09]} Bxc3 {[%emt 0:00:30]} 20. Qxa6 {[%emt 0:03:56]} Bf6 {[%emt 0:08:34]} 21. b7 {[%emt 0:02:43]} Nc2 {[%emt 0:00:50]} 22. Nd2 {[%emt 0:03:38]} Na1 {[%emt 0:03:02]} 23. Rb1 {[%emt 0:00:44]} Bc3 {[%emt 0:06:28]} 24. Nc4 {[%emt 0:03:15]} Bc8 {[%emt 0:00:49]} 25. Na3 {[%emt 0:09:09]} Bxb7 {[%emt 0:08:21]} 26. Rxb7 {[%emt 0:00:18]} Qa8 {[%emt 0:00:01]} 27. Ra7 {[%emt 0:01:08]} Qb8 {[%emt 0:00:02]} 28. Nb5 {[%emt 0:00:45]} Bf6 {[%emt 0:00:32]} 29. Rxc7 {[%emt 0:01:00]} Qa8 {[%emt 0:00:34]} 30. Qxa8 {[%emt 0:03:53]} Rxa8 {[%emt 0:00:02]} 31. Na7 {[%emt 0:00:08]} Nc2 {[%emt 0:02:03]} 32. a4 {[%emt 0:00:56]} Nb4 {[%emt 0:02:58]} 33. a5 {[%emt 0:04:13]} Kg7 {[%emt 0:05:20]} 34. Rb7 {[%emt 0:05:28]} Na6 {[%emt 0:03:47]} 35. Nc6 {[%emt 0:00:08]} Bc3 {[%emt 0:01:10]} 36. Rb3 {[%emt 0:01:47]} Bd2 {[%emt 0:01:48]} 37. Kf1 {[%emt 0:02:51]} Nc5 {[%emt 0:03:35]} 38. Ra3 {[%emt 0:01:20]} Na6 {[%emt 0:00:02]} 39. Ke2 {[%emt 0:05:11]} Bb4 {[%emt 0:00:01]} 40. Rb3 {[%emt 0:01:18]} Bc5 {[%emt 0:00:39]} 41. Nxe7 {[%emt 0:00:17]} Kf8 {[%emt 0:02:26]} 42. Nc6 {[%emt 0:00:06]} Nc7 {[%emt 0:00:30]} 43. Rb7 {[%emt 0:00:30]} Ne8 {[%emt 0:00:14]} 44. Kd3 {[%emt 0:00:56]} Nf6 {[%emt 0:00:25]} 45. h3 {[%emt 0:01:01]} Ke8 {[%emt 0:00:09] Ke4} 1-0